Cogmind - Beta 10.1 @@@ ROGUE MODE // 2020.10.05 @ 13:18:27 Player: Horse Result: Self-destructed Performance ------------- Evolutions (5) 2500 Regions Visited (14) 2800 Robots Destroyed (265) 1325 Value Destroyed (10708) 10708 Prototype IDs (17) 340 Alien Tech Used (0) 0 Bonus (4757) 4757 TOTAL SCORE: 22430 Bonus ------- High Alert Combat Kills 873 Follower Combat Kills 384 Entered Garrisons 1000 Used RIF Installer 2500 Cogmind --------- Core Integrity 318/1000 Matter 92/300 Energy 100/100 System Corruption 5% Temperature Cool (0) Movement Core (700) Ox13 Location -5/Factory Parts ------- > --- POWER (1) -------- (None) > --- PROPULSION (2) --- (None) > --- UTILITY (12) ----- Medium Storage Unit High-capacity Storage Unit Relay Coupler [Sentry] (17) > --- WEAPON (2) ------- (None) > --- INVENTORY (16) --- High-capacity Matter Pod (0) Advanced Terrain Scanner Advanced ECM Suite EM Shield Relay Coupler [NC] (39) Relay Coupler [Duelist] (39) Recalibrator Cooled Particle Cannon Cooled Particle Cannon Peak State ------------ > --- POWER ------------ Cold Fusion Reactor > --- PROPULSION ------- Armored Treads Medium Treads > --- UTILITY ---------- Advanced Heat Sink Advanced Cooling System Large Storage Unit High-capacity Storage Unit Improved Target Analyzer Particle Charger Improved Utility Shielding Hardened Medium Armor Plating Hardened Medium Armor Plating Relay Coupler [NC] > --- WEAPON ----------- Cooled Particle Cannon Ion Burst Cannon > --- INVENTORY -------- Heavy Deuterium Engine High-capacity Matter Pod Advanced Terrain Scanner Launcher Loader Advanced ECM Suite EM Shield Relay Coupler [NC] Relay Coupler [Duelist] Relay Coupler [Sentry] Recalibrator Cooled Particle Cannon Ion Burst Cannon Gauss Rifle Antimatter Cannon Improved Grenade Launcher Improved Grenade Launcher Remote Datajack [Rating: 62] Favorites ----------- Power Cold Fusion Reactor Engine Heavy Deuterium Engine Reactor Cold Fusion Reactor Propulsion Light Treads Treads Light Treads Leg Aluminum Leg Wheel Compact Wheel Utility Large Storage Unit Device Structural Scanner Storage Large Storage Unit Processor Improved Terrain Scan Processor Hackware Relay Coupler [Grunt] Protection Hardened Medium Armor Plating Weapon Heavy Assault Rifle Energy Gun Particle Gun Energy Cannon Advanced Beam Cannon Ballistic Gun Heavy Assault Rifle Ballistic Cannon Flak Cannon Launcher Improved Grenade Launcher Special Weapon Remote Datajack Slashing Weapon Katana Special Melee Weapon Improved Datajack Build | -11 -10 -10 -9 -9 -9 -8 -8 -8 -8 -7 -7 -6 -6 -5 ------- Run | Scr Mat Min Mat Sto Gar Mat Gar Mat Gar Fac Gar Fac Gar Fac Slots Evolved 10 | . . . 2 . . 2 . . . 2 . 2 . 2 Power . | . . . . . . . . . . . . . . . Propulsion . | . . . . . . . . . . . . . . . Utility 10 | . . . 2 . . 2 . . . 2 . 2 . 2 Weapon . | . . . . . . . . . . . . . . . Parts Attached 333 | 8 5 2 46 13 16 48 12 18 27 46 13 38 18 23 Power 10 | 1 . . 2 1 . 1 1 . 1 1 . 1 . 1 Engine 6 | 1 . . 2 . . . . . 1 1 . . . 1 Core . | . . . . . . . . . . . . . . . Reactor 4 | . . . . 1 . 1 1 . . . . 1 . . Propulsion 26 | 2 . 1 5 . 1 6 . . 5 2 . 1 1 2 Treads 18 | . . . 3 . 1 6 . . 4 2 . 1 1 . Leg 6 | 2 . 1 2 . . . . . 1 . . . . . Wheel 2 | . . . . . . . . . . . . . . 2 Hover . | . . . . . . . . . . . . . . . Flight . | . . . . . . . . . . . . . . . Utility 150 | 2 2 . 17 6 5 23 4 9 12 31 4 19 9 7 Device 59 | . . . 4 4 2 9 3 2 2 13 2 8 6 4 Storage 8 | 2 2 . 2 . . . . . . 1 . . . 1 Processor 5 | . . . 1 . . 2 . . . 1 . . 1 . Hackware 13 | . . . . . . 2 . 2 . 3 . 3 1 2 Protection 65 | . . . 10 2 3 10 1 5 10 13 2 8 1 . Artifact . | . . . . . . . . . . . . . . . Weapon 147 | 3 3 1 22 6 10 18 7 9 9 12 9 17 8 13 Energy Gun 17 | 3 1 . 3 . . 3 3 3 1 . . . . . Energy Cannon 27 | . . . 7 1 1 2 . 1 . 1 3 5 4 2 Ballistic Gun 20 | . . . . . 3 4 . 1 4 3 1 1 . 3 Ballistic Cannon 16 | . . 1 6 2 1 . . . . . . 3 . 3 Launcher 42 | . 2 . 6 3 5 7 4 2 4 1 2 2 2 2 Special Weapon 16 | . . . . . . . . . . 3 3 5 2 3 Impact Weapon . | . . . . . . . . . . . . . . . Slashing Weapon 7 | . . . . . . . . 2 . 4 . 1 . . Piercing Weapon . | . . . . . . . . . . . . . . . Special Melee Weapon 2 | . . . . . . 2 . . . . . . . . Unidentified Prototypes 4 | . . . 1 1 . . . . . 1 . 1 . . Parts Lost 73 | . . . 2 . 6 12 3 6 5 1 . 6 13 19 Power 4 | . . . 1 . . . 1 . . . . . . 2 Propulsion 11 | . . . . . 1 3 . . 2 . . 1 2 2 Utility 31 | . . . . . 2 2 1 2 1 1 . 5 9 8 Weapon 27 | . . . 1 . 3 7 1 4 2 . . . 2 7 Highest Loss Streak 11 | . . . 1 . 5 4 2 2 4 1 . 2 5 11 Average Slot Usage (%) 95 | . 100 100 99 99 99 98 98 98 98 99 95 94 86 46 Engine 4 | . 14 14 10 3 . . . . 4 7 7 4 . . Reactor 3 | . . . . 7 11 9 9 9 4 . . 1 6 . Treads 12 | . . . 13 22 21 17 18 18 17 15 15 13 3 . Leg 3 | . 28 28 8 . . . . . . . . . . . Device 9 | . . . 3 9 7 8 17 4 4 14 13 12 18 5 Storage 17 | . 28 28 22 22 22 18 18 18 18 15 15 13 13 14 Processor 3 | . . . . . . 11 9 9 9 4 3 . 4 . Hackware 4 | . . . . . . 2 . 10 . 6 6 10 10 7 Protection 15 | . . . 18 12 14 12 9 12 22 18 17 24 14 . Energy Gun 2 | . 21 . 1 . . 4 7 9 4 . . . . . Energy Cannon 4 | . . . 12 10 1 2 . 1 . . 5 2 8 4 Ballistic Gun 3 | . . . . . 12 7 . 1 11 8 . 1 . 2 Ballistic Cannon 2 | . . 13 6 8 3 . . . . . . 1 . . Launcher 2 | . 6 14 1 3 4 1 9 2 . . 6 3 . . Naked Turns . | . . . . . . . . . . . . . . . Heaviest Build 113 | 15 24 25 65 70 70 73 63 63 62 87 108 110 113 84 Greatest Support 48 | 20 20 20 40 40 40 43 40 40 40 40 40 48 48 32 Greatest Overweight (x) 32 | . 1 1 2 1 3 3 1 1 2 2 2 2 32 24 Average Overweight (x) 1 | . . 1 . 1 1 1 1 1 1 1 1 1 7 3 Largest Inventory Capacity 22 | 8 12 12 16 16 16 16 16 16 16 18 18 18 18 22 Average Capacity 16 | 5 10 12 13 16 16 16 16 16 16 17 18 18 18 19 Most Carried 19 | 1 5 11 16 16 16 16 16 16 16 18 18 18 18 19 Average Carried 14 | . 2 5 12 15 14 15 13 15 15 16 17 17 17 15 Final Capacity 18 | 8 12 12 16 16 16 16 16 16 16 18 18 18 18 16 Final Carried 18 | 1 4 9 15 16 16 16 13 16 15 18 18 18 18 9 Class Distribution -------------------- 50% | Mutant 22% | Scavenger-Mutant 18% | Bothacker-Mutant 3% | Scavenger-Skirmisher Dominant Class ---------------- Mutant | -10/Materials Mutant | -10/Mines Mutant | -9/Materials Mutant | -9/Storage Scavenger-Mutant | -9/Garrison Scavenger-Mutant | -8/Materials Mutant | -8/Garrison Mutant | -8/Materials Scavenger-Mutant | -8/Garrison Scavenger-Mutant | -7/Factory Mutant | -7/Garrison Mutant | -6/Factory Bothacker-Mutant | -6/Garrison Bothacker-Mutant | -5/Factory Resources | -11 -10 -10 -9 -9 -9 -8 -8 -8 -8 -7 -7 -6 -6 -5 ----------- Run | Scr Mat Min Mat Sto Gar Mat Gar Mat Gar Fac Gar Fac Gar Fac Matter Collected 6925 | 258 87 148 815 117 525 773 193 338 447 1002 301 878 411 632 Remotely 1271 | . . . 217 . . . . . . 556 291 207 . . Salvage Created 9419 | 77 233 56 1616 178 406 1600 453 443 537 1182 314 602 433 1289 Parts 519 | 2 30 7 122 12 25 76 17 18 27 63 26 32 14 48 Haulers Intercepted 8 | . 1 . 5 . . 2 . . . . . . . . Recyclers Shooed 18 | . . . 4 . . 1 . . . 9 . . . 4 Parts Field Recycled . | . . . . . . . . . . . . . . . Retrieved Matter . | . . . . . . . . . . . . . . . Parts Self-Destructed . | . . . . . . . . . . . . . . . Prevented . | . . . . . . . . . . . . . . . Kills | -11 -10 -10 -9 -9 -9 -8 -8 -8 -8 -7 -7 -6 -6 -5 ------- Run | Scr Mat Min Mat Sto Gar Mat Gar Mat Gar Fac Gar Fac Gar Fac Combat Hostiles Destroyed 202 | . 8 3 35 5 17 26 10 10 12 12 11 19 18 16 Melee 4 | . . . . . . 1 . 1 . 1 . 1 . . Guns 56 | . 2 . 3 . 7 14 2 4 10 7 . 3 . 4 Cannons 54 | . . . 16 4 5 4 . 3 . 2 3 5 7 5 AOE 87 | . 6 3 16 1 5 7 8 2 2 2 8 9 11 7 Classes Destroyed 16 | 1 4 2 4 . 1 2 . . . 1 . . 1 . Worker 13 | . . 1 3 . . 1 . . . 4 . 2 . 2 Builder 7 | . . . 3 . . 1 . . . . . . . 3 Tunneler 3 | . . 1 1 . . . . . . 1 . . . . Hauler 8 | . 1 . 5 . . 2 . . . . . . . . Recycler 15 | 1 . . 2 . . . . . . 8 . . . 4 Mechanic 1 | . . . . . . 1 . . . . . . . . Operator 6 | . . . 1 3 . 2 . . . . . . . . Watcher 10 | . 3 . 3 . . 3 . . . . . 1 . . Swarmer 56 | . 6 3 11 . 9 3 . . . 3 6 5 10 . Grunt 87 | . 2 . 15 3 6 17 8 5 6 2 4 4 7 8 Brawler 3 | . . . . . 1 . . . 1 . . . . 1 Duelist 4 | . . . 1 . . 1 1 . 1 . . . . . Sentry 29 | . . . 8 2 1 4 . 4 4 3 1 2 . . Specialist 1 | . . . . . . . . . . . . . 1 . Hunter 9 | . . . . . . 1 1 1 . 1 . 2 . 3 Programmer 13 | . . . . . . . . . . 3 . 6 . 4 Best Kill Streak 10 | 1 4 3 8 3 6 5 8 4 5 5 5 3 7 10 Combat Bots Only 9 | . 4 3 6 2 6 4 8 4 5 3 5 3 7 9 Max Kills in Single Turn 6 | 1 2 2 6 2 2 2 2 1 1 1 3 3 3 2 Gunslinging 1 | . . . . . . 1 . . . . . . . . Exploded 6 | . 2 2 6 1 2 2 2 1 1 1 3 3 3 2 Melee 1 | . . . . . . 1 . 1 . 1 . 1 . . Uniques/NPCs Destroyed . | . . . . . . . . . . . . . . . Combat | -11 -10 -10 -9 -9 -9 -8 -8 -8 -8 -7 -7 -6 -6 -5 -------- Run | Scr Mat Min Mat Sto Gar Mat Gar Mat Gar Fac Gar Fac Gar Fac Damage Taken 15029 | . 87 65 769 199 1340 2341 623 707 1273 893 455 1985 1763 2529 Core 2094 | . 8 . 87 . 188 233 133 74 104 97 . 243 245 682 Absorbed by Shields 545 | . . . . . 29 . . . . . 88 . 428 . Core Remaining (%) 59 | 100 . 96 . . 31 . . . 1 . 86 . 42 . Volleys Fired 652 | 4 13 8 82 16 46 103 28 34 48 63 18 84 34 71 Largest 2 | 2 2 2 2 2 2 2 2 2 2 2 2 2 2 2 Hottest 200 | 80 80 65 136 112 112 133 101 130 90 94 105 109 200 97 Shots Fired 1019 | 7 24 10 140 27 74 181 33 52 79 106 22 101 53 110 Gun 476 | 7 14 . 21 . 35 126 18 39 71 84 2 16 . 43 Cannon 352 | . . 6 98 21 26 27 . 6 . 8 8 58 37 57 Launcher 159 | . 10 4 21 6 13 28 15 7 8 3 11 12 14 7 Special 32 | . . . . . . . . . . 11 1 15 2 3 Kinetic 444 | . . 6 46 11 55 83 . . 47 84 2 39 . 71 Thermal 304 | . . . 52 10 6 70 18 39 24 . . 19 37 29 Explosive 91 | . 10 4 10 5 1 . 3 3 8 3 11 12 14 7 Electromagnetic 148 | 7 14 . 32 1 12 28 12 10 . 8 8 16 . . Robot Hit Streak 32 | 7 11 8 9 19 30 32 6 20 30 14 5 21 10 9 Robot Miss Streak 11 | . 1 1 6 2 11 3 1 2 3 4 1 3 4 4 Penetration Max 1 | . . . . . . . . . . . . . . 1 Secondary Targets 4 | . . . . . . 1 . . 3 . . . . . Max Gunslinging Chain 1 | . . . . . . 1 . . 1 . . . . . Shots Hit Robots 712 | 7 11 4 73 18 55 140 23 50 51 92 11 72 37 68 Core Hits 438 | 2 15 7 69 15 31 64 22 21 29 39 17 31 31 45 Critical Hits 15 | . . 1 5 . 1 1 . . . 1 . 1 . 5 Critical Kills 8 | . . 1 2 . . 1 . . . . . . . 4 Critical Parts Destroyed 7 | . . . 3 . 1 . . . . 1 . 1 . 1 Melee Attacks 43 | . . . . . . 3 . 12 . 27 . 1 . . Impact . | . . . . . . . . . . . . . . . Slashing 40 | . . . . . . . . 12 . 27 . 1 . . Piercing . | . . . . . . . . . . . . . . . Sneak Attacks 10 | . . . . . . 1 . . . 9 . . . . Combat Hostiles . | . . . . . . . . . . . . . . . Follow-up Attacks . | . . . . . . . . . . . . . . . Damage Inflicted 23900 | 92 563 204 2464 652 1102 3209 1171 1126 1316 2597 972 3393 2042 2997 Guns 5552 | 92 110 . 191 . 335 1325 251 484 829 1014 33 229 . 659 Cannons 6544 | . . 54 1300 382 351 479 . 132 . 203 130 1395 852 1266 Explosions 10522 | . 453 150 968 270 416 1360 920 343 486 359 809 1733 1183 1072 Melee 1176 | . . . . . . . . 167 . 1009 . . . . Ramming 106 | . . . 5 . . 45 . . 1 12 . 36 7 . Kinetic 6223 | . . 54 650 180 574 853 . . 636 1014 33 816 . 1413 Thermal 5596 | . . . 706 202 137 1044 392 484 193 . . 1074 852 512 Explosive 7062 | . 453 150 442 248 152 . 265 271 486 359 809 1172 1183 1072 Electromagnetic 3737 | 92 110 . 661 22 239 1267 514 204 . 203 130 295 . . Impact . | . . . . . . . . . . . . . . . Slashing 1176 | . . . . . . . . 167 . 1009 . . . . Piercing . | . . . . . . . . . . . . . . . Highest Corruption 6 | . . . . . 1 1 2 2 2 . . 6 6 5 Average Corruption 3 | . . . . . 1 1 1 2 2 . . 4 6 3 Corruption Purged . | . . . . . . . . . . . . . . . Effects 148 | . . . . . 5 6 2 8 8 . . 49 59 11 Message Errors 39 | . . . . . 1 2 . 1 2 . . 12 19 2 Matter Fused 26 | . . . . . . . . . . . . 9 17 . Heat Flow Errors 24 | . . . . . . . 1 3 3 . . 11 6 . Energy Discharges 12 | . . . . . . 2 1 . 2 . . 3 3 1 Parts Rejected 2 | . . . . . . . . . . . . 1 1 . Data Loss (minor) 23 | . . . . . 2 1 . 4 1 . . 5 8 2 Data Loss (major) 4 | . . . . . . . . . . . . 1 2 1 Misfires 3 | . . . . . . . . . . . . 1 1 1 Targeting Errors 13 | . . . . . 1 1 . . . . . 5 2 4 Weapon Failures 2 | . . . . . 1 . . . . . . 1 . . Overload Shots 2 | . . . . . . . . . . . . . 1 1 Overflow Damage 861 | . 3 . 24 8 . 28 7 . . 214 72 361 45 99 Projectiles 204 | . . . 16 . . . . . . . . 99 1 88 Explosions 467 | . 3 . 8 8 . 28 7 . . 24 72 262 44 11 Melee 190 | . . . . . . . . . . 190 . . . . Knockbacks 40 | . . 1 7 5 10 1 . . . . . 7 1 8 Impact 3 | . . . 1 . . 1 . . . . . . 1 . Kinetic 36 | . . 1 6 5 9 . . . . . . 7 . 8 Secondary 1 | . . . . . 1 . . . . . . . . . Self-Inflicted Damage 904 | . . . 53 20 60 151 39 . 65 . 98 335 83 . Shots 32 | . . . 2 1 2 10 4 . 3 . 2 6 2 . Rammed 14 | . . . 1 . . 4 . . 2 3 . 3 1 . Targets Rammed 17 | . . . 1 . . 6 . . 2 3 . 4 1 . Kicked . | . . . . . . . . . . . . . . . Crushed 3 | . . . . . . 2 . . . . . 1 . . Highest Temperature 345 | 36 39 15 296 246 246 299 127 303 345 177 115 235 176 15 Average Temperature 77 | 18 12 7 91 87 103 70 20 112 88 54 40 66 60 6 Received Heat Transfer 3689 | . 12 30 258 78 386 828 279 297 432 132 92 201 394 270 Effects 9 | . . . 3 1 1 1 . . 1 . . 2 . . Energy Bleed 5 | . . . 3 . . 1 . . 1 . . . . . Interference 4 | . . . . 1 1 . . . . . . 2 . . Siege Activations . | . . . . . . . . . . . . . . . Robots Corrupted 1 | . . . . . . . . . . . . 1 . . Combat Hostiles 1 | . . . . . . . . . . . . 1 . . Parts Fried 11 | 1 . . 2 . . 5 . . . 1 . 2 . . Impact Corruptions 1 | . . . . . . 1 . . . . . . . . Robots Melted . | . . . . . . . . . . . . . . . Combat Hostiles . | . . . . . . . . . . . . . . . Parts Melted 10 | . . . 2 . . 1 1 3 . . . . 1 2 Heat Transferred 8630 | . . . 1160 333 235 2024 655 1147 425 . . 1053 932 666 Parts Sabotaged . | . . . . . . . . . . . . . . . Parts Stolen . | . . . . . . . . . . . . . . . Parts Stripped . | . . . . . . . . . . . . . . . Power Chain Reactions 12 | . . . 6 . 1 2 1 1 . . . 1 . . Missiles Intercepted . | . . . . . . . . . . . . . . . Alert | -11 -10 -10 -9 -9 -9 -8 -8 -8 -8 -7 -7 -6 -6 -5 ------- Run | Scr Mat Min Mat Sto Gar Mat Gar Mat Gar Fac Gar Fac Gar Fac Peak Influence 945 | 5 276 130 417 250 945 748 556 444 523 277 676 851 626 457 Initial 460 | . 3 42 . 46 162 460 331 271 128 274 193 354 116 281 Average 333 | 1 83 77 219 115 596 484 451 281 394 128 487 347 539 342 Maximum Alert Level 3 | . 1 . 2 1 3 3 2 2 2 1 2 3 2 2 Low Security (%) 34 | 100 83 100 36 82 11 . . 37 11 71 12 43 2 . Level 1 28 | . 16 . 61 17 15 25 37 27 27 28 13 26 12 81 Level 2 32 | . . . 1 . 36 67 62 34 61 . 74 20 85 18 Level 3 4 | . . . . . 36 7 . . . . . 9 . . Level 4 . | . . . . . . . . . . . . . . . Level 5 . | . . . . . . . . . . . . . . . High Security . | . . . . . . . . . . . . . . . Max Security . | . . . . . . . . . . . . . . . Squads Dispatched 47 | . 1 . 5 4 . 6 . 4 . 6 . 11 . 10 Investigation 12 | . . . 2 1 . 2 . 1 . 3 . 1 . 2 Extermination 8 | . . . . . . . . . . 2 . 4 . 2 Reinforcement 13 | . 1 . 3 1 . 3 . 1 . 1 . 1 . 2 Assault 2 | . . . . . . . . . . . . 2 . . Garrison 12 | . . . . 2 . 1 . 2 . . . 3 . 4 Intercept . | . . . . . . . . . . . . . . . Construction Impeded 5 | . . . 2 . . . . . . 1 . . . 2 Haulers Reinforced . | . . . . . . . . . . . . . . . Stealth | -11 -10 -10 -9 -9 -9 -8 -8 -8 -8 -7 -7 -6 -6 -5 --------- Run | Scr Mat Min Mat Sto Gar Mat Gar Mat Gar Fac Gar Fac Gar Fac Distress Signals 10 | . . . 4 1 . 3 . . . 1 . 1 . . Communications Jammed . | . . . . . . . . . . . . . . . Distress Signals . | . . . . . . . . . . . . . . . Times Spotted 338 | . 13 4 51 5 22 64 15 21 18 18 16 37 23 31 Peak Tracking Total 7 | . 6 2 6 2 7 6 7 4 6 4 5 5 4 6 Tactical Retreats 41 | . . . . . 2 10 4 6 4 2 4 3 . 6 Traps | -11 -10 -10 -9 -9 -9 -8 -8 -8 -8 -7 -7 -6 -6 -5 ------- Run | Scr Mat Min Mat Sto Gar Mat Gar Mat Gar Fac Gar Fac Gar Fac Traps Triggered 18 | . 1 . 2 . 1 . . . 2 . 9 1 2 . Indirectly . | . . . . . . . . . . . . . . . Trap Hack Attempts . | . . . . . . . . . . . . . . . Triggered . | . . . . . . . . . . . . . . . Disarmed . | . . . . . . . . . . . . . . . Reprogrammed . | . . . . . . . . . . . . . . . Reused . | . . . . . . . . . . . . . . . Traps Extracted . | . . . . . . . . . . . . . . . Installed . | . . . . . . . . . . . . . . . Triggered 2 | . . . . . . 1 1 . . . . . . . Machines | -11 -10 -10 -9 -9 -9 -8 -8 -8 -8 -7 -7 -6 -6 -5 ---------- Run | Scr Mat Min Mat Sto Gar Mat Gar Mat Gar Fac Gar Fac Gar Fac Machines Disabled 59 | . 1 4 3 1 7 11 . . 4 2 3 17 3 3 Max in Single Turn 7 | . 1 3 1 1 2 2 . . 2 2 1 7 1 1 Garrison Relay 7 | . . . . . 2 . . . 1 . 2 . 2 . Phase Generator 2 | . . . . . 1 . . . 1 . . . . . Machines Sabotaged . | . . . . . . . . . . . . . . . Garrisons Compromised . | . . . . . . . . . . . . . . . Overloaded Fab Kills . | . . . . . . . . . . . . . . . Fab Network Shutdowns . | . . . . . . . . . . . . . . . Hacking | -11 -10 -10 -9 -9 -9 -8 -8 -8 -8 -7 -7 -6 -6 -5 --------- Run | Scr Mat Min Mat Sto Gar Mat Gar Mat Gar Fac Gar Fac Gar Fac Machines Accessed 65 | . 5 1 14 4 . 11 . 5 . 13 . 10 . 2 Terminals 35 | . 4 . 10 3 . 6 . 4 . 3 . 4 . 1 Fabricators 5 | . . . . . . . . . . 3 . 2 . . Repair Stations 7 | . . . 2 . . 2 . . . 3 . . . . Recycling Units 3 | . 1 . . . . . . . . 2 . . . . Scanalyzers 7 | . . . 2 . . 2 . . . 1 . 2 . . Garrison Access 7 | . . . . 1 . 1 . 1 . 1 . 2 . 1 Total Hacks 248 | . 16 1 58 20 . 41 . 27 . 53 . 27 . 5 Successful 157 | . 10 1 38 11 . 27 . 18 . 33 . 18 . 1 Failed 91 | . 6 . 20 9 . 14 . 9 . 20 . 9 . 4 Catastrophic 9 | . . . 1 . . 1 . 1 . 2 . 2 . 2 Database Lockouts . | . . . . . . . . . . . . . . . Manual 107 | . 8 . 29 14 . 15 . 8 . 16 . 13 . 4 Terminals 150 | . 15 . 45 16 . 26 . 25 . 9 . 12 . 2 Fabricators 24 | . . . . . . . . . . 16 . 8 . . Repair Stations 25 | . . . 4 . . 6 . . . 15 . . . . Recycling Units 9 | . 1 . . . . . . . . 8 . . . . Scanalyzers 23 | . . . 9 . . 6 . . . 3 . 5 . . Garrison Access 16 | . . . . 4 . 3 . 2 . 2 . 2 . 3 Terminal Hacks 51 | . 6 1 19 3 . 9 . 10 . 1 . 2 . . Robot Analysis 6 | . 3 . 1 1 . . . 1 . . . . . . Prototype ID Bank 7 | . 1 . 3 . . . . 2 . 1 . . . . Open Door 2 | . . 1 . 1 . . . . . . . . . . Level Access Points 2 | . . . 1 . . 1 . . . . . . . . Branch Access Points 1 | . . . . . . . . 1 . . . . . . Emergency Access Points 1 | . . . . . . . . 1 . . . . . . Terminal Index 5 | . . . 1 1 . 1 . 1 . . . 1 . . Fabricator Index 1 | . . . . . . . . . . . . 1 . . Garrison Index 1 | . . . 1 . . . . . . . . . . . Alert Level 2 | . . . 2 . . . . . . . . . . . Unreport Threat 9 | . . . 4 . . 3 . 2 . . . . . . Locate Traps 2 | . 1 . 1 . . . . . . . . . . . Dispatch Records 1 | . . . 1 . . . . . . . . . . . Patrol Status 2 | . . . 1 . . . . 1 . . . . . . Recall Reinforcements 1 | . . . . . . 1 . . . . . . . . Registered Components 3 | . 1 . . . . 1 . 1 . . . . . . Zone Layout 5 | . . . 3 . . 2 . . . . . . . . Fabricator Hacks 12 | . . . . . . . . . . 7 . 5 . . Network Status 1 | . . . . . . . . . . 1 . . . . Load Schematic 4 | . . . . . . . . . . 2 . 2 . . Build 7 | . . . . . . . . . . 4 . 3 . . Repair Station Hacks 21 | . . . 4 . . 6 . . . 11 . . . . Scan Component 11 | . . . 2 . . 3 . . . 6 . . . . Repair 10 | . . . 2 . . 3 . . . 5 . . . . Recycling Unit Hacks 3 | . 1 . . . . . . . . 2 . . . . Retrieve Components 3 | . 1 . . . . . . . . 2 . . . . Scanalyzer 18 | . . . 9 . . 4 . . . 1 . 4 . . Insert Component 10 | . . . 5 . . 2 . . . 1 . 2 . . Analyze 8 | . . . 4 . . 2 . . . . . 2 . . Garrison Access Hacks 7 | . . . . 2 . 1 . 1 . 1 . 1 . 1 Unlock Access 6 | . . . . 1 . 1 . 1 . 1 . 1 . 1 Coupler Status 1 | . . . . 1 . . . . . . . . . . Unauthorized Hacks 45 | . 3 . 6 6 . 7 . 7 . 10 . 6 . . Terminals 32 | . 3 . 6 5 . 6 . 7 . 3 . 2 . . Track 9 | . . . 2 1 . 1 . 2 . 2 . 1 . . Assimilate 1 | . . . . . . . . 1 . . . . . . Botnet 16 | . 3 . 3 3 . 3 . 2 . 1 . 1 . . Detonate 1 | . . . . . . 1 . . . . . . . . Disrupt 2 | . . . . 1 . . . 1 . . . . . . Operators 3 | . . . 1 . . 1 . 1 . . . . . . Fabricators 5 | . . . . . . . . . . 3 . 2 . . Report 2 | . . . . . . . . . . 1 . 1 . . Siphon 3 | . . . . . . . . . . 2 . 1 . . Repair Stations . | . . . . . . . . . . . . . . . Recycling Units 4 | . . . . . . . . . . 4 . . . . Monitor 1 | . . . . . . . . . . 1 . . . . Reject 2 | . . . . . . . . . . 2 . . . . Recyclers 1 | . . . . . . . . . . 1 . . . . Scanalyzers 1 | . . . . . . . . . . . . 1 . . Extract 1 | . . . . . . . . . . . . 1 . . Garrison Access 3 | . . . . 1 . 1 . . . . . 1 . . Reprogram 3 | . . . . 1 . 1 . . . . . 1 . . Data Cores Recovered 2 | . . . . 1 . 1 . . . . . . . . Used 2 | . . . . 1 . 1 . . . . . . . . Hacking Detections 59 | . 3 . 14 4 . 10 . 5 . 12 . 9 . 2 Full Trace Events 8 | . . . . 1 . 1 . 1 . 3 . . . 2 Feedback Events 1 | . . . . . . . . . . . . . . 1 Corruption 1 | . . . . . . . . . . . . . . 1 Feedback Blocked . | . . . . . . . . . . . . . . . Robot Schematics Acquired . | . . . . . . . . . . . . . . . Robots Built . | . . . . . . . . . . . . . . . Matter . | . . . . . . . . . . . . . . . Time . | . . . . . . . . . . . . . . . Total Robot Build Rating . | . . . . . . . . . . . . . . . Part Schematics Acquired 8 | . . . 4 . . 1 . . . . . 3 . . Parts Built 7 | . . . . . . . . . . 5 . 2 . . Matter 1005 | . . . . . . . . . . 604 . 401 . . Time 481 | . . . . . . . . . . 262 . 219 . . Total Part Build Rating 28 | . . . . . . . . . . 22 . 6 . . Parts Repaired 10 | . . . 2 . . 3 . . . 5 . . . . Time 416 | . . . 64 . . 171 . . . 181 . . . . Parts Recycled . | . . . . . . . . . . . . . . . Recycled Matter . | . . . . . . . . . . . . . . . Retrieved Matter . | . . . . . . . . . . . . . . . Retrieved Components 13 | . 3 . . . . . . . . 10 . . . . Parts Scanalyzed 8 | . . . 4 . . 2 . . . 1 . 1 . . Part Schematics Acquired 7 | . . . 4 . . 1 . . . . . 2 . . Parts Damaged 1 | . . . 1 . . . . . . . . . . . Bothacking | -11 -10 -10 -9 -9 -9 -8 -8 -8 -8 -7 -7 -6 -6 -5 ------------ Run | Scr Mat Min Mat Sto Gar Mat Gar Mat Gar Fac Gar Fac Gar Fac Used RIF Installer 5 | . . . . . 1 . 1 . 1 . 1 . 1 . Coupler Efficiency 1 | . . . . . . . . . . . . . 1 . Zone Cloak 1 | . . . . . . . 1 . . . . . . . Robot Detection 1 | . . . . . . . . . 1 . . . . . Structural Interface 1 | . . . . . . . . . . . 1 . . . Robots Hacked 20 | . . . . . . 1 . . . 6 1 8 2 2 Non-combat 9 | . . . . . . . . . . 5 . 4 . . Combat 11 | . . . . . . 1 . . . 1 1 4 2 2 Robot Hacks Applied 30 | . . . . . . 2 . . . 11 1 11 2 3 parse_system 1 | . . . . . . . . . . 1 . . . . no_distress 1 | . . . . . . . . . . 1 . . . . generate_anomaly 1 | . . . . . . . . . . . . 1 . . find_chute 1 | . . . . . . . . . . 1 . . . . find_fabricator 1 | . . . . . . . . . . 1 . . . . drop_inventory 3 | . . . . . . . . . . 1 . 2 . . locate_stockpiles 1 | . . . . . . . . . . 1 . . . . find_recycling 1 | . . . . . . . . . . 1 . . . . purge_threat 4 | . . . . . . . . . . . . 4 . . map_route 1 | . . . . . . . . . . 1 . . . . mark_security 1 | . . . . . . . . . . 1 . . . . find_shortcuts 1 | . . . . . . . . . . 1 . . . . spike_heat 2 | . . . . . . . . . . 1 . 1 . . disable_weapons 1 | . . . . . . . . . . . . . . 1 overwrite_iff 2 | . . . . . . . . . . . . 2 . . streamctrl_high 3 | . . . . . . 2 . . . . 1 . . . formatsys_high 5 | . . . . . . . . . . . . 1 2 2 Relay Couplers Released 24 | . . . . . 6 . . . 3 . 8 . 7 . Machine Destruction 24 | . . . . . 6 . . . 3 . 8 . 7 . Attached 9 | . . . . . . 1 . . . 2 . 3 1 2 Robots Rewired . | . . . . . . . . . . . . . . . Allies Hacked . | . . . . . . . . . . . . . . . Hacks Repelled . | . . . . . . . . . . . . . . . Allies | -11 -10 -10 -9 -9 -9 -8 -8 -8 -8 -7 -7 -6 -6 -5 -------- Run | Scr Mat Min Mat Sto Gar Mat Gar Mat Gar Fac Gar Fac Gar Fac Total Allies 13 | . . 2 . 1 . 1 . . . . 1 4 2 2 Largest Group 2 | . . 2 2 . 1 1 . . . . 1 1 1 1 Highest-Rated Group 49 | . . 41 41 . 15 15 . . . . 29 47 32 49 Highest-Rated Ally 49 | . . 31 31 . 15 15 . . . . 29 47 32 49 Total Orders 5 | . . . . 2 . . . . . . 2 . . 1 STAY 1 | . . . . . . . . . . . . . . 1 FOLLOW 1 | . . . . . . . . . . . 1 . . . GUARD 1 | . . . . . . . . . . . 1 . . . EXPLORE 2 | . . . . 2 . . . . . . . . . . Ally Attacks 65 | . . 5 10 . 9 13 . . . . 6 12 4 6 Total Damage 1364 | . . 82 126 . 221 269 . . . . 73 212 151 230 Kills 16 | . . 2 2 . 3 4 . . . . 3 . . 2 Allies Corrupted . | . . . . . . . . . . . . . . . Allies Melted 1 | . . . . . . . . . . . . . 1 . Intel | -11 -10 -10 -9 -9 -9 -8 -8 -8 -8 -7 -7 -6 -6 -5 ------- Run | Scr Mat Min Mat Sto Gar Mat Gar Mat Gar Fac Gar Fac Gar Fac Robot Analysis Total 6 | . 3 . 1 1 . . . 1 . . . . . . Derelict Logs Recovered 1 | . . 1 . . . . . . . . . . . . Drone Launches 12 | . . . . 12 . . . . . . . . . . Drone Recoveries . | . . . . . . . . . . . . . . . Exploration | -11 -10 -10 -9 -9 -9 -8 -8 -8 -8 -7 -7 -6 -6 -5 ------------- Run | Scr Mat Min Mat Sto Gar Mat Gar Mat Gar Fac Gar Fac Gar Fac Turns Passed 16836 | 78 553 913 2307 372 1161 1829 345 650 873 2311 840 1951 2000 653 Spaces Moved 6628 | 46 353 561 1058 94 528 650 126 240 375 865 354 768 401 209 Core 100 | 5 . . . . . . . . . . . . 77 18 Treads 4964 | . . . 640 94 528 650 126 240 375 865 354 768 324 . Legs 1373 | 41 353 561 418 . . . . . . . . . . . Wheels 191 | . . . . . . . . . . . . . . 191 Hover . | . . . . . . . . . . . . . . . Flight . | . . . . . . . . . . . . . . . Fastest Speed 50 | 50 120 150 150 180 180 180 190 190 180 180 190 185 185 110 Average Speed 194 | 112 135 150 164 180 180 181 190 190 183 184 205 205 456 185 Slowest Speed 1650 | 120 150 150 180 180 220 220 190 190 210 210 210 210 1650 1250 Overloaded Moves . | . . . . . . . . . . . . . . . Propulsion Burnouts . | . . . . . . . . . . . . . . . Robots Hopped . | . . . . . . . . . . . . . . . Cave-ins Triggered . | . . . . . . . . . . . . . . . Exploration Rate (%) 50 | 5 68 98 79 42 88 58 42 27 67 29 49 22 69 7 Regions Visited 14 Branch Regions 2 Pre-discovered Areas . | . . . . . . . . . . . . . . . Known Exits Taken 6 | . . . 1 1 . 1 . 1 . 1 . 1 . . Unknown Exits Taken 3 | 1 1 1 . . . . . . . . . . . . Scrap Searched 1 | . . 1 . . . . . . . . . . . . Spaces Dug 62 | . . . . 22 . . . 4 . 9 . 26 . 1 Terrain Destroyed 821 | . 55 29 54 58 87 7 24 21 108 15 97 169 77 20 Melee 14 | . . . . . . . . 4 . 9 . 1 . . Projectile 16 | . . . . . . . . . . . . 8 . 8 AOE 791 | . 55 29 54 58 87 7 24 17 108 6 97 160 77 12 Terrain Rammed . | . . . . . . . . . . . . . . . Walls Destroyed . | . . . . . . . . . . . . . . . Machines Disabled . | . . . . . . . . . . . . . . . Actions | -11 -10 -10 -9 -9 -9 -8 -8 -8 -8 -7 -7 -6 -6 -5 --------- Run | Scr Mat Min Mat Sto Gar Mat Gar Mat Gar Fac Gar Fac Gar Fac Total 9458 | 61 401 624 1486 267 661 1101 196 359 483 1440 450 1041 521 367 Wait 1541 | 3 26 42 257 132 66 267 30 46 13 393 37 121 54 54 Move 6617 | 45 352 560 1057 93 527 650 125 239 374 865 353 768 400 209 Hop . | . . . . . . . . . . . . . . . Pick Up 117 | 1 3 8 18 2 4 13 1 8 6 22 6 13 6 6 Fast Attach 60 | 7 . . 9 4 3 9 . 3 7 4 . 5 3 6 Attach 64 | . . . 2 . 4 8 5 5 5 7 2 8 6 12 Detach 19 | . . . 1 1 1 3 . 2 . 5 2 2 2 . Swap 209 | 1 5 2 35 9 9 31 7 10 15 35 11 25 9 5 Drop 88 | . 2 4 24 5 1 8 . . 11 16 4 9 2 2 Fire 652 | 4 13 8 82 16 46 103 28 34 48 63 18 84 34 71 Melee 43 | . . . . . . 3 . 12 . 27 . 1 . . Ram . | . . . . . . . . . . . . . . . Kick . | . . . . . . . . . . . . . . . Crush 17 | . . . 1 . . 6 . . 2 3 . 4 1 . Escape Stasis 19 | . . . . . . . . . . . 17 . 2 . Rewire 7 | . . . . . . . . . 2 . . 1 2 2 Trap . | . . . . . . . . . . . . . . . Miscellaneous 5 | . . . . 5 . . . . . . . . . . Route ------- -11/Scrapyard -10/Materials (discovered 3 exits: *Mat x2 / *Min) -10/Mines (discovered 2 exits: *Mat x2) -9/Materials (discovered 5 exits: *Mat x3 / [*Min] / *Sto) -9/Storage -9/Garrison (discovered 3 exits: *Mat x3) -8/Materials (discovered 4 exits: *Fac x3 / Gar) -8/Garrison -8/Materials -8/Garrison (discovered 2 exits: *Fac x2) -7/Factory (discovered 2 exits: Fac / Gar) -7/Garrison -6/Factory (discovered 3 exits: [*Low] / [*Ext] / Gar) -6/Garrison (discovered 3 exits: *Fac x3) -5/Factory (discovered 1 exit: Gar) History --------- Turn | Location | Event 5 | -11/Scrapyard | Discovered new exit (range 16) 79 | -11/Scrapyard | Entered Materials 310 | -10/Materials | Build established: Mutant 327 | -10/Materials | Discovered new exit (range 13) 496 | -10/Materials | Discovered new exit (range 4) 553 | -10/Materials | Discovered new exit (range 15) 632 | -10/Materials | Entered Mines 653 | -10/Mines | Discovered new exit (range 9) 887 | -10/Mines | Discovered new exit (range 5) 956 | -10/Mines | Learned Materials emergency access door positions 1052 | -10/Mines | Deemed a non-threat by the Exiles lab entrance 1214 | -10/Mines | Met a Derelict who couldn't figure out how to use a Trap Extractor 1545 | -10/Mines | Entered Materials 1545 | -9/Materials | Accompanied by 2 allies 1545 | -9/Materials | Evolved 2 slots: Utility x2 1550 | -9/Materials | Led the pair of lost Derelicts to an unsafe place 1671 | -9/Materials | Repaired Lgt. Cannon 1883 | -9/Materials | Discovered new exit (range 7) 2016 | -9/Materials | Identified exit to Storage 2365 | -9/Materials | Discovered new exit (range 15) 2750 | -9/Materials | Repaired Lrn. Tractor Beam 2806 | -9/Materials | Discovered new exit (range 10) 3115 | -9/Materials | Build established: Scavenger-Mutant 3290 | -9/Materials | Discovered new exit (range 15) 3321 | -9/Materials | Identified exit to Materials 3684 | -9/Materials | Build established: Mutant 3852 | -9/Materials | Entered Storage 4080 | -9/Storage | Garrison activated, responded to threat 4216 | -9/Storage | Identified exit to Garrison 4224 | -9/Storage | Entered Garrison 4224 | -9/Garrison | Accompanied by 1 ally 4348 | -9/Garrison | Triggered checkpoint 4350 | -9/Garrison | Triggered checkpoint 4459 | -9/Garrison | Discovered exit to Materials (range 12) 4543 | -9/Garrison | Triggered checkpoint 4552 | -9/Garrison | Triggered checkpoint 4594 | -9/Garrison | Core integrity fell below 50% 4652 | -9/Garrison | Lost 5 parts (1n2u2w) 4744 | -9/Garrison | Triggered checkpoint 4799 | -9/Garrison | Discovered exit to Materials (range 13) 4910 | -9/Garrison | Build established: Scavenger-Mutant 4912 | -9/Garrison | Phase Generator disabled 5114 | -9/Garrison | Triggered checkpoint 5183 | -9/Garrison | Discovered exit to Materials (range 12) 5219 | -9/Garrison | Installed Relay Interface Framework 5345 | -9/Garrison | Garrison Relay disabled 5385 | -9/Garrison | Entered Materials 5385 | -8/Materials | Evolved 2 slots: Utility x2 5607 | -8/Materials | Lost 4 parts (1n1u2w) 5904 | -8/Materials | Repaired Hrd. Medium Armor Plating 6007 | -8/Materials | Identified exit to Factory 6150 | -8/Materials | Repaired Broken Lrn. Tractor Beam? 6252 | -8/Materials | Repaired Cold Fusion Reactor 6990 | -8/Materials | Build established: Mutant 7131 | -8/Materials | Garrison activated, responded to threat 7210 | -8/Materials | Identified exit to Garrison 7214 | -8/Materials | Entered Garrison 7224 | -8/Garrison | Expanded RIF knowledge: Zone Cloak 7305 | -8/Garrison | Triggered checkpoint 7309 | -8/Garrison | Triggered checkpoint 7326 | -8/Garrison | Core integrity fell below 50% 7405 | -8/Garrison | Destroyed 8 combat bots 7496 | -8/Garrison | Triggered checkpoint 7544 | -8/Garrison | Discovered new exit (range 8) 7559 | -8/Garrison | Entered Materials 8018 | -8/Materials | Garrison activated, responded to threat 8180 | -8/Materials | Identified exit to Garrison 8209 | -8/Materials | Entered Garrison 8250 | -8/Garrison | Triggered checkpoint 8306 | -8/Garrison | Garrison Relay disabled 8517 | -8/Garrison | Phase Generator disabled 8539 | -8/Garrison | Triggered checkpoint 8543 | -8/Garrison | Core integrity fell below 20% 8621 | -8/Garrison | Lost 4 parts (2n1u1w) 8876 | -8/Garrison | Discovered exit to Factory (range 10) 8907 | -8/Garrison | Build established: Scavenger-Mutant 8964 | -8/Garrison | Triggered checkpoint 9050 | -8/Garrison | Discovered exit to Factory (range 10) 9075 | -8/Garrison | Expanded RIF knowledge: Robot Detection 9082 | -8/Garrison | Entered Factory 9082 | -7/Factory | Evolved 2 slots: Utility x2 9312 | -7/Factory | Fabricated Adv. Cooling System (x1) 9385 | -7/Factory | Fabricated Hrd. Medium Armor Plating (x1) 9899 | -7/Factory | Repaired Cold Fusion Reactor 9938 | -7/Factory | Repaired Insulated Plating 9971 | -7/Factory | Repaired Rocket Launcher 10109 | -7/Factory | Discovered new exit (range 106) 10211 | -7/Factory | Repaired Minigun 10474 | -7/Factory | Fabricated Launcher Loader (x2) 10662 | -7/Factory | Fabricated Hrd. Medium Armor Plating (x1) 10985 | -7/Factory | Build established: Mutant 11301 | -7/Factory | Repaired Hrd. Medium Armor Plating 11393 | -7/Factory | Identified exit to Garrison 11393 | -7/Factory | Entered Garrison 11403 | -7/Garrison | Expanded RIF knowledge: Structural Interface 11453 | -7/Garrison | Build established: Assassin 11608 | -7/Garrison | Triggered checkpoint 11623 | -7/Garrison | Garrison Relay disabled 11796 | -7/Garrison | Triggered checkpoint 11850 | -7/Garrison | Build established: Mutant 11910 | -7/Garrison | Discovered new exit (range 12) 12046 | -7/Garrison | Triggered checkpoint 12105 | -7/Garrison | Triggered checkpoint 12127 | -7/Garrison | Garrison Relay disabled 12233 | -7/Garrison | Entered Factory 12233 | -6/Factory | Evolved 2 slots: Utility x2 12454 | -6/Factory | Build established: Bothacker-Mutant 12870 | -6/Factory | Discovered new exit (range 12) 12933 | -6/Factory | First assault squad dispatched 12939 | -6/Factory | Discovered new exit (range 9) 13440 | -6/Factory | Build established: Mutant 13742 | -6/Factory | Garrison activated, responded to threat 13932 | -6/Factory | Fabricated Hrd. Medium Armor Plating? 14090 | -6/Factory | Fabricated Hrd. Medium Armor Plating (x1) 14184 | -6/Factory | Identified exit to Garrison 14184 | -6/Factory | Entered Garrison 14246 | -6/Garrison | Triggered checkpoint 14263 | -6/Garrison | Triggered checkpoint 14268 | -6/Garrison | Destroyed 7 combat bots 14293 | -6/Garrison | Triggered checkpoint 14406 | -6/Garrison | Discovered new exit (range 12) 14472 | -6/Garrison | Triggered checkpoint 14522 | -6/Garrison | Garrison Relay disabled 14652 | -6/Garrison | Discovered new exit (range 11) 14837 | -6/Garrison | Discovered new exit (range 10) 14839 | -6/Garrison | Build established: Bothacker-Mutant 14875 | -6/Garrison | Expanded RIF knowledge: Coupler Efficiency 14970 | -6/Garrison | Triggered checkpoint 15488 | -6/Garrison | Garrison Relay disabled 16087 | -6/Garrison | Spotted B-75 Beast 16087 | -6/Garrison | Spotted B-75 Beast 16174 | -6/Garrison | Core integrity fell below 50% 16184 | -6/Garrison | Entered Factory 16184 | -5/Factory | Evolved 2 slots: Utility x2 16207 | -5/Factory | Lost 5 parts (3u2w) 16306 | -5/Factory | Lost 4 parts (1p2u1w) 16423 | -5/Factory | Identified exit to Garrison 16496 | -5/Factory | Garrison activated, responded to threat 16606 | -5/Factory | Garrison activated, responded to threat 16633 | -5/Factory | P-70 Sage assimilated allied Slayer 6a 16634 | -5/Factory | Destroyed 9 combat bots 16692 | -5/Factory | Lost 11 parts (1p2n4u4w) 16700 | -5/Factory | Core integrity fell below 50% 16837 | -5/Factory | Self-destructed Last Messages --------------- 16806_ L-41 Fighter emerges from the garrison. 16808_ XYMETEG L3GA5F#QP8ZF 16810_ U-05 Engineer lays Concrete. 16815_ R-10 Processor collects Field Recycling Unit. 16818_ Slug penetrates B-60 Warrior. 16818_ B-60 Warrior suffers critical hit. 16818_ B-60 Warrior destroyed. 16821_ System corrupted: Gauss Rifle targeting data glitched. 16821_ R-10 Processor collects Lgt. Ion Engine. 16824_ Slug penetrates L-41 Fighter. 16827_ Acquired 88 matter. 16828_ U-05 Engineer lays Concrete. 16829_ Gauss Rifle severed. 16830_ System corrupted: FCS attempts to trigger Gauss Rifle. 16830_ System corrupted: Gauss Rifle misfires. 16830_ ALERT: Construction progress impeded, dispatching reinforcements to local area. 16834_ ALERT: Rogue bot located, Programmers report to Factory Zone 8L. 16834_ Relay Coupler [Hunter] destroyed. 16835_ Slug penetrates L-41 Fighter. 16837_ Gauss Rifle destroyed. Map ----- +----------------------------------------------------+ | ?????????????# """""" # #?####???????????? | | ???########### """""" # """ + ???????????? | | ???# """ """ # """""" # """ # ???????????? | | ???# """ """ # + """ # # ? ????? | | ???# """ """ # """""" # # # ?== ????? | | ???# # ! """""" # """ # # ?== ????? | | ???# # """""" # """ # + == ??? | | ???# # """""" # """ + # ? | | #### # # # # | | # # # # # """ """ | | ###+#############+##"######### # """S""" ? | | " ??? | | ! [# #"##### | | ^ %* % | | """"" " % | | " "" #% | | ######+############ % %*% # | | ??# #??????# ! # | | ??# """ #????### % % # = | | ??# """ #????#"" """""" # !% | | ??# """ #????#"" """""""% = ############ | | ??# #????#G> """"""" %! #??????????? | | ??# """ #????#"" """""""! o " #??????????? | | ??# """ #????#"" h [% # ## ###??????????? | | ??# """ #????### ""%%/ ! # ####????????????? | | ??# #??????# "%%=@ ####??????????????? | | ??##########??????#^ "%% lu %"""#??????????????? | | ??????????????????# pp ^ """#??????????????? | | ??????????????????# R"#??????????????? | | ??????????????????# ^%" """" """#??????????????? | | ??????????????????# """"""" "" #??????????????? | | ??????????????????# """"""" ####??????????????? | | ??????????????????# """"""" ????????????????? | | ??????????????????+ ???????????????? | | ??????????????????# ??????????????? | | ??????????????????# ?????????????? | | ??????????????????# ????? ????????????? | | ??????????????????####????########+###???????????? | | ?????????????????????????????????? ?????????????? | | ??????????????????????????????????? ?????????????? | | ?????????????????????????????????????????????????? | | ?????????????????????????????????????????????????? | | ?????????????????????????????????????????????????? | | ?????????????????????????????????????????????????? | | ?????????????????????????????????????????????????? | | ?????????????????????????????????????????????????? | | ?????????????????????????????????????????????????? | | ?????????????????????????????????????????????????? | | ?????????????????????????????????????????????????? | | ?????????????????????????????????????????????????? | +----------------------------------------------------+ Best States ------------- Heat Dissipation 87 Energy Generation 18 Energy Capacity 310 Matter Stores 300 Matter Capacity 300 Sight Range 16 Terrain Scan Range 20 Terrain Scan Density 210 ECM Strength 3 Armor Coverage 825 Resistance: EM 15 Core Shielding 20 Propulsion Shielding 66 Utility Shielding 66 Phase Shifting 5 Evasion (%) 45 Target Analysis 6 Recoil Reduction 2 Particle Charging 15 Kinecelleration 40 Overload Amplification 50 Offensive Hacking 10 Defensive Hacking 10 Relay Coupler Types 91 Relay Coupler Value 2 Item Schematics ----------------- Shock Bomb Launcher | -9/Materials | Scanalyzed Hacking Suite | -9/Materials | Scanalyzed Hrd. Medium Armor Plating | -9/Materials | Scanalyzed Lrn. Tractor Beam | -9/Materials | Scanalyzed System Shield | -8/Materials | Scanalyzed Cold Fusion Reactor | -6/Factory | Scanalyzed Particle Charger | -6/Factory | Scanalyzed Plasma Rifle | -6/Factory | Extracted Robot Schematics ------------------ None Fabricated ------------ Adv. Cooling System | x1 | -7/Factory | Preloaded Hrd. Medium Armor Plating | x1 | -7/Factory Launcher Loader | x2 | -7/Factory | Preloaded Hrd. Medium Armor Plating | x1 | -7/Factory Hrd. Medium Armor Plating | x1 | -6/Factory Hrd. Medium Armor Plating | x1 | -6/Factory Alien Tech Used ----------------- None Achievements -------------- None Challenges ------------ None Game ------ Seed TerrainBombFlail Manual? 0 Play Time 03:26:52 Cumulative 898.6 hours Start 2020.10.03 @ 21:16:27 End 2020.10.05 @ 13:18:27 Sessions 3 Manual Loads 0 Difficulty Rogue Special Mode None Game No. 343 Rogue 343 Adventurer 0 Explorer 0 Win Type - Total 13 Types 12/0/1/0/0/0/0/0/0 Lore% 75 Gallery% 86 Achievement% 69 Wizard Run 0 Options --------- ASCII 0 Keyboard 1 Movement Numpad Keybinds 0 Fullscreen 2 Font 18/SmallcapsGlow Map View 112x50 Tactical HUD 1 Map Filters NONE Filters NONE Steam 1 RUN: b8fafb06-6e7f-4177-be63-ba8fd9c67227